bitfinex/quotes_SOLUSD_20220128
["timestamp","ask_amount","ask_price","bid_price","bid_amount"]
[1643404617315,6.0,92.913,92.831,0.25]
[1643404617617,6.0,92.925,92.831,0.25]
[1643404618015,37.12100581,92.924,92.831,0.25]
[1643404618416,6.0,92.914,92.831,0.25]
[1643404618615,1.10414316,92.914,92.831,34.6914552]
[1643404618863,0.1,92.971,92.831,34.6914552]
[1643404618864,22.7559,92.977,92.84,16.155]
[1643404619031,0.1,92.976,92.85,6.0]
[1643404619222,0.04270214,92.987,92.86,194.97]
[1643404619423,0.04270214,92.987,92.87,15.6]
[1643404619623,0.04270214,92.987,92.88,194.97]
[1643404619825,0.04270214,92.987,92.89,210.57]
[1643404620030,0.1,93.052,92.901,107.9]
[1643404620230,0.1,93.052,92.92,194.97]
[1643404620427,0.1,93.078,92.921,35.65549031]
[1643404620623,0.1,93.078,92.95,194.97]
[1643404620825,44.57522586,93.078,92.97,16.132]
[1643404621025,0.1,93.088,92.97,16.132]
[1643404621026,0.1,93.077,92.98,21.6]
[1643404621223,0.1,93.088,92.98,21.6]
[1643404621423,0.1,93.088,92.981,35.65549031]
[1643404621623,48.694,93.089,92.991,6.0]
[1643404621823,2.95669142,93.087,93.0,15.6]
[1643404622022,6.0,93.077,93.0,15.6]
[1643404622424,2.95669142,93.076,93.0,15.6]
[1643404623030,6.0,93.077,93.0,15.6]
[1643404623425,6.0,93.078,93.0,15.6]
[1643404623828,49.32474528,93.088,93.0,15.6]
[1643404624032,6.0,93.078,93.0,15.6]
[1643404624229,5.5,93.078,93.0,15.6]
[1643404624432,5.5,93.078,92.98,15.6]
[1643404624628,2.95669142,93.077,92.95,15.6]
[1643404624830,16.134,93.07,92.96,15.6]
[1643404625030,36.4746274,93.069,92.96,15.6]
[1643404625228,39.43131882,93.069,92.96,15.6]
[1643404625432,2.95669142,93.068,92.96,31.734]
[1643404625631,11.72336942,93.068,92.96,31.734]
[1643404626034,8.766678,93.068,92.96,31.734]
[1643404626231,6.0,93.058,92.96,31.734]
[1643404626478,6.0,93.058,92.96,15.6]
[1643404626664,8.95669142,93.058,92.96,15.6]
[1643404626864,6.0,93.057,92.96,15.6]
[1643404627064,8.95669142,93.058,92.96,15.6]
[1643404628068,16.138,93.05,92.96,15.6]
[1643404628270,36.26292686,93.049,92.961,2.95669142]
[1643404628473,6.0,93.04,92.96,15.6]
[1643404628669,2.95669142,93.048,92.92,16.142]
[1643404628872,6.0,93.039,92.93,15.6]
[1643404629072,44.26761103,93.029,92.94,15.6]
[1643404629271,44.26761103,93.029,92.93,15.6]
[1643404629477,6.0,93.019,92.94,31.737]
[1643404629677,6.0,93.019,92.94,42.837]
[1643404630068,6.0,93.038,92.94,26.7]
[1643404630573,38.80077919,93.037,92.94,26.7]
[1643404630769,38.80077919,93.037,92.941,28.59400456]
[1643404630971,6.0,93.027,92.941,3.20669142]
[1643404631270,38.80077919,93.037,92.942,2.95669142]
[1643404631470,38.80077919,93.037,92.94,15.6]
[1643404631870,6.0,93.027,92.94,15.6]
[1643404632370,6.0,93.027,92.941,3.20669142]
[1643404632570,6.0,93.027,92.941,14.67669142]
[1643404632770,6.0,93.027,92.942,2.95669142]
[1643404632969,6.0,93.063,92.96,16.134]
[1643404633173,6.0,93.063,92.96,31.734]
[1643404633371,15.61411941,93.063,92.96,31.734]
[1643404633570,16.136,93.06,92.96,15.6]
[1643404633970,49.25102527,93.062,92.96,15.6]
[1643404633971,6.0,93.05,92.96,15.6]
[1643404634373,2.95669142,93.049,92.94,16.2571]
[1643404634571,16.144,93.02,92.94,16.2571]
[1643404634772,44.22583909,93.019,92.94,16.2571]
[1643404634976,14.8804628,93.06,92.94,32.3951]
[1643404635174,24.0471,93.087,92.95,21.6]
[1643404635373,6.0,93.037,92.95,32.41]
[1643404635573,22.137,93.05,92.951,6.0]
[1643404635777,22.137,93.05,92.952,0.25]
[1643404635974,44.52302314,93.049,92.951,0.25]
[1643404636174,44.52302314,93.049,92.95,15.6]
[1643404636374,6.0,93.039,92.95,15.6]
[1643404636574,6.0,93.038,92.95,15.6]
[1643404637375,6.0,93.038,92.951,110.85669142]
[1643404637610,6.0,93.038,92.951,122.43669142]
[1643404637776,6.0,93.038,92.952,2.95669142]
[1643404637976,6.0,93.065,92.952,2.95669142]
[1643404638175,6.0,93.065,92.953,0.25]
[1643404638382,42.00447839,93.064,92.97,16.133]
[1643404638577,6.0,93.054,92.97,31.733]
[1643404639175,6.0,93.054,92.97,15.6]
[1643404639876,6.0,93.05,92.97,15.6]
[1643404640078,36.41460621,93.049,92.97,15.6]
[1643404640575,6.0,93.039,92.97,15.6]
[1643404641087,2.95669142,93.038,92.944,1.47399666]
[1643404641279,2.95669142,93.038,92.932,1.47399666]
[1643404641484,6.0,93.028,92.92,1.47399666]
[1643404641684,38.87393358,93.027,92.923,1.47399666]
[1643404641884,53.7052502,93.027,92.923,1.47399666]
[1643404642093,14.83131662,93.026,92.92,1.47399666]
[1643404642487,16.147,93.01,92.917,1.47399666]
[1643404642690,16.147,93.01,92.918,1.47399666]
[1643404642887,6.0,93.0,92.917,1.47399666]
[1643404643087,6.0,92.999,92.916,1.47399666]
[1643404643490,6.0,92.999,92.919,1.47399666]
[1643404643691,6.0,92.999,92.924,1.47399666]
[1643404643888,6.0,92.999,92.922,1.47399666]
[1643404644187,6.0,92.999,92.925,1.47399666]
[1643404644388,46.86005502,93.009,92.929,1.47399666]
[1643404644589,46.86005502,93.009,92.934,1.47399666]
[1643404644792,11.8746252,93.028,92.941,0.25]
[1643404644990,23.9719,93.074,92.95,21.6]
[1643404645229,23.9719,93.074,92.963,1.47399666]
[1643404645429,23.9719,93.074,92.976,1.47399666]
[1643404645624,23.9719,93.074,92.986,6.0]
[1643404645825,23.9719,93.074,92.98,15.6]
[1643404645826,42.74932573,93.073,92.987,1.47399666]
[1643404646023,53.7688545,93.073,92.98,15.6]
[1643404646228,53.7688545,93.073,92.981,1.47399666]
[1643404646426,42.74932573,93.073,93.001,1.47399666]
[1643404647125,53.7688545,93.073,92.996,1.47399666]
[1643404647325,2.95669142,93.072,92.991,1.47399666]
[1643404647524,2.95669142,93.072,92.987,1.47399666]
[1643404647724,15.6,93.07,92.987,1.47399666]
[1643404647926,53.814,93.06,92.98,1.47399666]
[1643404648126,24.2344,93.059,92.977,1.47399666]
[1643404648324,41.77264995,93.058,92.98,2.94987892]
[1643404648727,6.0,93.048,92.978,5.94897552]
[1643404649033,6.0,93.048,92.973,2.94987892]
[1643404649034,47.56732836,93.039,92.967,2.94987892]
[1643404649225,53.821,93.03,92.964,2.94987892]
[1643404649427,6.0,93.029,92.964,2.94987892]
[1643404649625,6.0,93.02,92.961,2.94987892]
[1643404649825,6.0,93.02,92.942,5.74550436]
[1643404649826,41.78614651,93.019,92.951,2.94987892]
[1643404650029,6.0,93.009,92.962,2.94987892]
[1643404650330,6.0,93.009,92.963,5.74550436]
[1643404650527,6.0,93.009,92.96,2.94987892]
[1643404650931,6.0,93.009,92.961,2.94987892]
[1643404651128,6.0,93.009,92.961,5.74550436]
[1643404651333,16.147,93.0,92.958,2.94987892]
[1643404651534,34.4698621,93.029,92.961,2.94987892]
[1643404651730,24.018,93.029,92.961,12.51]
[1643404651929,24.018,93.029,92.962,8.69538328]
[1643404652128,24.018,93.029,92.968,2.94987892]
[1643404652328,10.4518621,93.056,92.979,2.94987892]
[1643404652534,6.0,93.046,92.984,2.94987892]
[1643404652728,49.52877195,93.055,92.984,2.94987892]
[1643404652928,49.52877195,93.055,92.982,2.94987892]
[1643404653128,45.79688564,93.039,92.983,2.94987892]
[1643404653528,45.79688564,93.039,92.984,5.74550436]
[1643404653941,45.79688564,93.039,92.981,2.94987892]
[1643404654129,45.79688564,93.039,92.985,5.74550436]
[1643404654330,45.79688564,93.039,92.981,2.94987892]
[1643404654733,45.79688564,93.039,92.979,2.94987892]
[1643404655131,46.204,93.059,92.983,2.94987892]
[1643404655331,46.204,93.059,92.988,2.94987892]
[1643404655530,10.4518621,93.076,92.992,2.94987892]
[1643404655931,6.0,93.066,92.992,2.94987892]
[1643404656132,35.2938696,93.065,93.0,2.94987892]
[1643404656360,35.2938696,93.065,93.001,2.94987892]
[1643404656535,35.2938696,93.065,93.001,8.69538328]
[1643404656731,35.2938696,93.065,92.999,2.94987892]
[1643404656933,35.2938696,93.065,92.998,2.94987892]
[1643404657233,35.2938696,93.065,93.0,2.94987892]
[1643404657433,35.2938696,93.065,92.991,5.74550436]
[1643404657633,0.1,93.157,92.994,70.0]
[1643404657835,0.1,93.173,93.067,26.18588591]
[1643404658035,0.1,93.185,93.09,194.97]
[1643404658233,0.1,93.185,93.1,15.6]
[1643404658634,44.59742683,93.185,93.1,15.6]
[1643404658932,0.1,93.184,93.101,5.99350412]
[1643404659138,0.1,93.184,93.109,2.94987892]
[1643404659334,0.7,93.21,93.12,15.6]
[1643404659533,0.7,93.21,93.13,6.0]
[1643404659735,0.7,93.21,93.14,15.6]
[1643404660234,39.96189182,93.2,93.14,15.6]
[1643404660635,6.0,93.19,93.14,15.6]
[1643404661738,4.6998542,93.19,93.14,15.6]
[1643404661936,4.6998542,93.19,93.12,15.6]
[1643404662335,20.8138542,93.19,93.1,15.6]
[1643404662539,20.8138542,93.19,93.11,15.6]
[1643404662737,4.6998542,93.19,93.12,15.6]
[1643404663137,4.6998542,93.19,93.081,9.19]
[1643404663338,4.6998542,93.19,93.082,5.71950263]
[1643404663537,4.6998542,93.19,93.09,16.112]
[1643404663736,4.6998542,93.19,93.1,12.88]
[1643404663938,39.46189182,93.2,93.1,23.86]
[1643404664141,39.46189182,93.2,93.101,8.31230901]
[1643404664342,39.46189182,93.2,93.101,8.56230901]
[1643404664542,39.46189182,93.2,93.12,16.106]
[1643404664741,39.46189182,93.2,93.13,12.88]
[1643404664940,39.46189182,93.2,93.13,18.88]
[1643404665140,39.46189182,93.2,93.131,6.0]
[1643404665339,39.46189182,93.2,93.131,14.39775108]
[1643404665540,39.46189182,93.2,93.132,116.54775108]
[1643404665742,53.661,93.3,93.14,16.103]
[1643404665943,156.1366,93.323,93.15,12.88]
[1643404666141,125.0211871,93.289,93.17,161.03]
[1643404666341,76.6826,93.289,93.18,12.88]
[1643404666543,76.6826,93.289,93.181,6.0]
[1643404666740,37.2708479,93.288,93.19,6.0]
[1643404666945,37.2708479,93.288,93.2,12.88]
[1643404667142,37.2708479,93.288,93.21,12.88]
[1643404667442,36.7708479,93.288,93.21,12.88]
[1643404668244,36.7708479,93.288,93.22,6.0]
[1643404668445,36.7708479,93.288,93.23,12.88]
[1643404669241,16.091,93.32,93.23,12.88]
[1643404669645,6.0,93.31,93.23,12.88]
[1643404670042,6.0,93.333,93.23,12.88]
[1643404670341,16.091,93.31,93.23,12.88]
[1643404670543,6.0,93.3,93.23,12.88]
[1643404670742,36.10042292,93.299,93.23,12.88]
[1643404670943,36.10042292,93.299,93.21,12.88]
[1643404671140,6.0,93.289,93.21,12.88]
[1643404671569,15.597,93.28,93.21,12.88]
[1643404671767,42.4887606,93.279,93.21,12.88]
[1643404672173,6.0,93.269,93.19,12.88]
[1643404672567,42.4887606,93.279,93.19,12.88]
[1643404672767,34.91802605,93.258,93.19,12.88]
[1643404673970,34.91802605,93.258,93.19,120.78]
[1643404674470,16.093,93.31,93.2,16.093]
[1643404674674,6.0,93.3,93.21,12.88]
[1643404675269,16.097,93.28,93.18,12.88]
[1643404675470,47.28897857,93.279,93.18,28.976]
[1643404675671,6.0,93.27,93.18,12.88]
[1643404675872,6.0,93.269,93.18,12.88]
[1643404676472,16.101,93.26,93.18,12.88]
[1643404676671,47.48565437,93.259,93.18,12.88]
[1643404678276,47.48565437,93.259,93.181,107.9]
[1643404678873,6.0,93.269,93.181,107.9]
[1643404679076,22.094,93.3,93.191,6.0]
[1643404679281,22.094,93.3,93.2,12.88]
[1643404679880,49.63351077,93.299,93.2,12.88]
[1643404680178,40.17716635,93.279,93.2,12.88]
[1643404681183,40.17716635,93.279,93.201,107.9]
[1643404681383,40.17716635,93.279,93.2,12.88]
[1643404682684,6.0,93.289,93.2,12.88]
[1643404683087,6.0,93.324,93.2,12.88]
[1643404683285,49.4092,93.334,93.201,107.9]
[1643404683485,16.092,93.33,93.201,107.9]
[1643404683688,38.87288131,93.314,93.2,28.973]
[1643404683886,38.87288131,93.314,93.201,0.25]
[1643404684287,38.87288131,93.314,93.201,111.10669142]
[1643404684585,38.87288131,93.314,93.201,108.15]
[1643404685089,38.87288131,93.314,93.211,6.0]
[1643404685287,0.1,93.339,93.22,28.969]
[1643404685487,0.1,93.355,93.221,113.64771344]
[1643404685686,6.0,93.329,93.23,6.0]
[1643404685887,6.0,93.345,93.24,12.88]
[1643404686388,48.53411215,93.314,93.24,12.88]
[1643404686790,48.53411215,93.314,93.213,2.94987892]
[1643404686993,48.53411215,93.314,93.214,5.74497542]
[1643404687395,48.53411215,93.314,93.22,16.089]
[1643404687600,48.53411215,93.314,93.23,12.88]
[1643404687798,48.53411215,93.314,93.24,12.88]
[1643404690332,48.53411215,93.314,93.241,107.9]
[1643404690529,48.53411215,93.314,93.24,28.966]
[1643404691133,48.53411215,93.314,93.24,12.88]
[1643404692631,48.53411215,93.314,93.244,2.94987892]
[1643404693031,6.0,93.304,93.243,2.94987892]
[1643404693230,6.0,93.304,93.234,2.94987892]
[1643404693630,6.0,93.304,93.216,4.41424106]
[1643404693631,6.0,93.304,93.235,2.94987892]
[1643404693833,6.0,93.304,93.235,5.79134662]
[1643404694032,6.0,93.304,93.237,2.94987892]
[1643404694234,6.0,93.304,93.183,2.95669142]
[1643404694235,6.0,93.304,93.217,5.79134662]
[1643404694432,6.0,93.304,93.212,5.79134662]
[1643404694631,6.0,93.295,93.212,5.79134662]
[1643404694832,43.2186946,93.294,93.212,5.79134662]
[1643404695031,58.63295919,93.294,93.187,5.79134662]
[1643404695233,6.0,93.284,93.187,5.79134662]
[1643404695436,6.0,93.284,93.187,10.20558768]
[1643404695731,21.41426459,93.283,93.188,5.79134662]
[1643404695934,43.2186946,93.294,93.188,5.79134662]
[1643404696134,11.51868428,93.322,93.2,12.88]
[1643404696332,0.1,93.339,93.2,12.88]
[1643404696333,0.1,93.348,93.201,113.94134662]
[1643404696532,0.1,93.348,93.23,4.41424106]
[1643404696735,0.1,93.348,93.241,107.9]
[1643404696933,0.1,93.348,93.24,12.88]
[1643404697137,42.75133747,93.314,93.241,5.79134662]
[1643404698635,42.75133747,93.314,93.242,107.9]
[1643404698841,42.75133747,93.314,93.243,5.79134662]
[1643404699235,42.75133747,93.314,93.241,5.79134662]
[1643404700037,42.75133747,93.314,93.242,107.9]
[1643404700237,42.75133747,93.314,93.243,5.79134662]
[1643404700639,42.75133747,93.314,93.244,0.25]
[1643404701037,42.75133747,93.314,93.245,5.79134662]
[1643404701236,42.75133747,93.314,93.25,12.88]
[1643404701636,42.75133747,93.314,93.251,5.79134662]
[1643404703138,42.75133747,93.314,93.237,5.79134662]
[1643404703340,42.75133747,93.314,93.222,5.79134662]
[1643404704137,16.093,93.31,93.222,5.79134662]
[1643404704337,6.0,93.304,93.222,5.79134662]
[1643404704540,16.093,93.31,93.222,5.79134662]
[1643404705552,6.0,93.3,93.222,5.79134662]
[1643404705743,48.96698946,93.299,93.222,5.79134662]
[1643404706143,48.96698946,93.299,93.216,5.79134662]
[1643404706343,48.96698946,93.299,93.226,113.7]
[1643404706749,48.96698946,93.299,93.227,5.79134662]
[1643404707449,48.96698946,93.299,93.23,12.88]
[1643404707847,48.96698946,93.299,93.231,5.79134662]
[1643404708048,6.0,93.289,93.231,5.79134662]
[1643404708347,0.1,93.339,93.232,3.20669142]
[1643404708550,47.6161,93.349,93.232,3.20669142]
[1643404708551,0.1,93.348,93.242,6.0]
[1643404708847,0.1,93.348,93.25,12.88]
[1643404709047,44.82888375,93.314,93.251,5.79134662]
[1643404709246,44.82888375,93.314,93.26,6.0]
[1643404709448,44.82888375,93.314,93.25,12.88]
[1643404710350,44.82888375,93.314,93.25,28.964]
[1643404712751,44.82888375,93.314,93.251,108.15]
[1643404713055,44.82888375,93.314,93.26,15.082]
[1643404713251,44.82888375,93.314,93.26,27.962]
[1643404713453,44.82888375,93.314,93.26,12.88]
[1643404715051,44.82888375,93.314,93.261,107.9]
[1643404715254,44.82888375,93.314,93.26,12.88]
[1643404715456,0.1,93.355,93.26,12.88]
[1643404715656,0.1,93.355,93.26,23.1]
[1643404715855,6.0,93.345,93.26,12.88]
[1643404716055,6.0,93.345,93.214,15.8542]
[1643404716056,0.30948552,93.329,93.22,12.88]
[1643404716257,11.94,93.321,93.214,15.8542]
[1643404716464,46.56322345,93.314,93.214,15.8542]
[1643404716855,6.0,93.304,93.214,15.8542]
[1643404717055,16.093,93.3,93.214,15.8542]
[1643404717259,38.26443945,93.299,93.214,15.8542]
[1643404717456,6.0,93.29,93.214,15.8542]
[1643404717659,38.26443945,93.299,93.214,15.8542]
[1643404717860,6.0,93.289,93.214,15.8542]
[1643404718661,38.26443945,93.299,93.215,107.9]
[1643404719358,38.26443945,93.299,93.216,0.25]
[1643404719960,38.26443945,93.299,93.23,12.88]
[1643404720172,24.9957,93.329,93.23,12.88]
[1643404720361,24.9957,93.329,93.231,107.9]
[1643404720562,6.0,93.319,93.231,107.9]
[1643404720761,6.0,93.319,93.23,12.88]
[1643404721162,43.44288543,93.314,93.23,12.88]
[1643404722561,43.44288543,93.314,93.231,107.9]
[1643404722762,6.0,93.304,93.231,107.9]
[1643404723364,6.0,93.304,93.23,12.88]
[1643404724166,43.44288543,93.314,93.23,12.88]
[1643404724365,43.44288543,93.314,93.231,107.9]
[1643404725967,43.44288543,93.314,93.23,12.88]
[1643404726169,16.091,93.31,93.227,113.7]
[1643404726366,6.0,93.304,93.227,113.7]
[1643404726566,6.0,93.303,93.227,113.7]
[1643404727167,6.0,93.302,93.18,189.6]
[1643404727571,44.90784515,93.292,93.18,189.6]
[1643404727767,44.87414949,93.269,93.18,189.6]
[1643404727968,44.87414949,93.269,93.16,12.88]
[1643404728172,58.97224012,93.268,93.16,12.88]
[1643404728474,0.31572118,93.222,93.105,11.21055133]
[1643404728668,16.116,93.19,93.091,433.13695058]
[1643404728869,12.88,93.18,93.059,401.08292465]
[1643404729070,6.0,93.17,93.059,401.08292465]
[1643404729268,0.30404825,93.156,93.033,1.3048221]
[1643404729473,12.88,93.15,93.033,1.3048221]
[1643404729670,46.4404837,93.149,93.033,1.3048221]
[1643404729871,49.39717512,93.149,93.033,1.3048221]
[1643404730074,6.0,93.139,93.033,1.3048221]
[1643404730572,6.0,93.134,93.033,1.3048221]
[1643404730771,38.46520067,93.133,93.033,1.3048221]
[1643404731578,16.123,93.13,93.033,1.3048221]
[1643404732378,2.95669142,93.129,93.033,1.3048221]
[1643404732575,6.0,93.119,93.033,1.3048221]
[1643404732777,44.20837099,93.118,93.033,1.3048221]
[1643404732976,47.16506241,93.118,93.033,1.3048221]
[1643404733175,6.0,93.108,93.033,1.3048221]
[1643404733377,16.128,93.09,93.033,1.3048221]
[1643404733577,42.63358112,93.089,93.033,1.3048221]
[1643404733774,42.63358112,93.089,93.033,17.1572221]
[1643404734979,6.0,93.108,93.033,17.1572221]
[1643404735189,12.88,93.15,93.033,26.2372221]
[1643404735381,16.117,93.16,93.04,16.118]
[1643404735580,79.8144,93.19,93.05,6.0]
[1643404735784,79.8144,93.19,93.06,12.88]
[1643404735983,6.0,93.18,93.06,12.88]
[1643404736381,6.0,93.179,93.06,12.88]
[1643404736582,16.118,93.15,93.06,12.88]
[1643404736787,47.91565675,93.149,93.06,12.88]
[1643404736983,47.91565675,93.149,93.061,0.25]
[1643404737190,47.91565675,93.149,93.061,11.73]
[1643404737987,47.91565675,93.149,93.07,16.113]
[1643404738388,47.91565675,93.149,93.07,28.993]
[1643404738587,47.91565675,93.149,93.071,0.25]
[1643404739014,47.91565675,93.149,93.071,108.15]
[1643404740416,47.91565675,93.149,93.071,118.65]
[1643404740614,16.115,93.17,93.071,118.65]
[1643404740817,6.0,93.16,93.071,118.65]
[1643404741016,6.0,93.18,93.071,118.65]
[1643404741616,47.91459993,93.179,93.071,118.65]
[1643404742118,47.91459993,93.179,93.081,107.9]
[1643404742119,6.0,93.169,93.081,107.9]
[1643404742320,6.0,93.169,93.082,0.25]
[1643404742917,6.0,93.169,93.07,12.88]
[1643404743117,6.0,93.169,93.071,107.9]
[1643404743318,6.0,93.169,93.071,108.15]
[1643404745124,46.03210132,93.159,93.071,108.15]
[1643404745321,46.03210132,93.159,93.081,6.0]
[1643404745822,16.115,93.17,93.081,6.0]
[1643404746520,16.115,93.17,93.082,107.9]
[1643404746720,48.98341738,93.169,93.082,107.9]
[1643404746920,48.98341738,93.169,93.092,6.0]
[1643404747526,16.117,93.16,93.08,6.0]
[1643404747821,16.117,93.16,93.06,29.287]
[1643404748023,16.117,93.16,93.05,12.88]
[1643404748223,16.117,93.16,79.01,36.42330388]
[1643404748224,2.95669142,93.159,93.031,113.7]
[1643404748424,16.121,93.14,93.031,113.7]
[1643404748622,48.99459634,93.139,93.043,6.0]
[1643404748824,6.0,93.129,93.033,1.3048221]
[1643404749026,13.20328832,93.12,93.033,1.3048221]
[1643404749224,38.3585877,93.119,93.033,1.3048221]
[1643404749425,6.0,93.11,93.033,1.3048221]
[1643404749625,12.88,93.1,93.033,1.3048221]
[1643404749827,29.014,93.09,93.033,2.21e-05]
[1643404750129,35.014,93.09,93.033,2.21e-05]
[1643404750332,37.97069142,93.09,93.033,2.21e-05]
[1643404750533,21.83669142,93.09,93.033,2.21e-05]
[1643404751332,16.134,93.08,93.033,2.21e-05]
[1643404751531,6.0,93.07,93.033,2.21e-05]
[1643404752334,6.0,93.08,93.033,2.21e-05]
[1643404753035,16.136,93.06,93.033,2.21e-05]
[1643404756441,18.88,93.05,93.033,2.21e-05]
[1643404756639,35.02,93.05,93.033,2.21e-05]
[1643404756839,8.95669142,93.049,93.033,2.21e-05]
[1643404757040,6.0,93.04,93.033,2.21e-05]
[1643404757340,24.9443,93.04,93.033,2.21e-05]
[1643404757664,16.143,93.02,92.954,113.7]
[1643404757869,46.14285987,93.019,92.954,113.7]
[1643404758271,46.14285987,93.019,92.917,113.7]
[1643404758272,6.0,93.009,92.917,113.7]
[1643404759471,45.7110805,92.999,92.917,113.7]
[1643404759868,6.0,92.989,92.917,113.7]
[1643404760270,2.95669142,92.988,92.864,113.7]
[1643404760672,2.95669142,92.988,92.878,6.0]
[1643404760969,16.151,92.98,92.879,3.9852344]
[1643404761170,16.151,92.98,92.879,9.9852344]
[1643404761370,42.66566641,92.979,92.879,3.9852344]
[1643404761570,42.66566641,92.979,92.88,3.9852344]
[1643404761769,42.66566641,92.979,92.879,3.9852344]
[1643404762972,16.15,92.97,92.879,3.9852344]
[1643404763571,16.15,92.97,92.878,6.0]
[1643404763972,16.15,92.97,92.879,3.97419101]
[1643404764374,16.15,92.97,92.878,6.0]
[1643404765176,16.15,92.97,92.864,113.7]
[1643404765377,19.10669142,92.97,92.865,3.97592851]
[1643404765577,6.0,92.96,92.865,3.97592851]
[1643404765878,6.0,92.96,92.864,113.7]
[1643404765879,6.0,92.96,92.866,3.97241182]
[1643404766075,6.0,92.97,92.866,3.97241182]
[1643404766276,6.0,92.97,92.867,3.97241182]
[1643404766478,6.0,92.97,92.865,3.97241182]
[1643404766678,6.0,92.97,92.865,112.12241182]
[1643404766877,16.15,92.97,92.865,3.97241182]
[1643404767079,16.15,92.97,92.866,3.97241182]
[1643404767080,6.0,92.96,92.866,3.97241182]
[1643404767281,42.15561961,92.959,92.864,113.7]
[1643404767578,6.0,92.949,92.864,113.7]
[1643404767980,46.99305412,92.939,92.864,113.7]
[1643404768878,46.99305412,92.939,92.865,1.4329784]
[1643404769177,55.07002226,92.92,92.867,1.4329784]
[1643404769378,17.90731681,92.92,92.864,113.7]
[1643404769787,17.90731681,92.92,92.846,16.1168]
[1643404770179,6.0,92.948,92.846,16.1168]
[1643404770380,16.155,92.94,92.851,1.4329784]
[1643404770780,16.155,92.94,92.855,1.4329784]
[1643404770983,16.155,92.94,92.856,1.4329784]
[1643404771181,43.29003083,92.939,92.856,1.4329784]
[1643404771480,43.29003083,92.939,92.855,1.4329784]
[1643404771880,43.29003083,92.939,92.854,1.4329784]
[1643404772082,16.155,92.94,92.854,1.4329784]
[1643404772281,144.9969,92.959,92.855,1.4329784]
[1643404772480,66.723,92.97,92.854,1.4329784]
[1643404772683,6.0,92.949,92.855,1.4329784]
[1643404772980,41.40758572,92.958,92.855,1.4329784]
[1643404773182,41.40758572,92.958,92.856,1.4329784]
[1643404773383,5.5,92.948,92.865,1.4329784]
[1643404773585,5.5,92.948,92.848,3.69054202]
[1643404773586,5.5,92.948,92.866,1.4329784]
[1643404773883,5.5,92.948,92.864,1.4329784]
[1643404774285,5.5,92.948,92.862,1.4329784]
[1643404774481,5.5,92.948,92.863,1.4329784]
[1643404775082,5.5,92.948,92.862,1.4329784]
[1643404775282,5.5,92.948,92.847,108.15]
[1643404775283,5.5,92.948,92.861,1.4329784]
[1643404775483,5.5,92.948,92.862,1.4329784]
[1643404775881,5.5,92.948,92.864,1.4329784]
[1643404776085,36.32782739,92.939,92.864,1.4329784]
[1643404776286,36.32782739,92.939,92.863,1.4329784]
[1643404776489,36.32782739,92.939,92.878,1.4329784]
[1643404776684,36.32782739,92.939,92.879,1.4329784]
[1643404776885,36.32782739,92.939,92.88,1.4329784]
[1643404777685,36.32782739,92.939,92.881,1.4329784]
[1643404777883,36.32782739,92.939,92.88,1.4329784]
[1643404778686,36.32782739,92.939,92.879,1.4329784]
[1643404779287,16.155,92.94,92.883,1.4329784]
[1643404779487,16.155,92.94,92.884,1.4329784]
[1643404780491,16.155,92.94,92.885,1.4329784]
[1643404781289,16.155,92.94,92.886,1.4329784]